[Event "GER-ch Youth-ODJM 2022 A"]
[Site "Willingen"]
[Date "2022.06.09"]
[Round "7.16"]
[White "Kruse, Victor"]
[Black "Fuchs, Florian"]
[Result "1-0"]
[ECO "D30"]
[WhiteElo "1733"]
[BlackElo "2320"]
[Annotator "TA"]
[PlyCount "97"]
[EventDate "2022.06.05"]
[EventType "swiss"]
[EventRounds "9"]
[EventCountry "GER"]
[SourceTitle "playchess.com"]
[Source "ChessBase"]
[SourceQuality "1"]
[TimeControl "40/4500+30:900+30"]

{[%evp 9,96,22,37,8,37,34,29,10,24,20,13,20,21,0,45,14,58,-175,-182,-185,-127,-156,-150,-110,-102,-93,-10,-29,-32,-35,0,0,0,0,68,68,166,145,159,135,123,152,262,129,127,126,128,137,126,130,165,170,175,167,221,122,456,435,450,442,439,422,543,535,508,500,455,439,604,604,577,563,556,543,522,514,29960,29960,29962,11813,29985,29986,29990,29984,29990,29991,29991,29992,29999]} 1. d4 {[%emt 0:00:00]} d5 {[%emt 0:00:00]} 2. c4 {[%emt 0:00:00]} e6 {[%emt 0:00:00]} 3. Nf3 {[%emt 0:00:00]} c6 {[%emt 0:00:00]} 4. e3 {[%emt 0:00:00]} f5 {[%emt 0:00:00]} 5. Nc3 {[%emt 0:00:00]} Nf6 {[%emt 0:00:00][%cal Bg8f6,Bf6e4,Be4g5,Bg5f3][%mdl 32]} 6. b3 {[%emt 0:00:00] A85: Dutch Defence: 2 c4 Nf6 3 Nc3.} Bd6 {[%emt 0:00:00]} 7. Bb2 {[%emt 0:00:00]} O-O {[%emt 0:00:00]} 8. Rc1 {[%emt 0:00:00] White has an edge.} Nbd7 {[%emt 0:00:00]} 9. Bd3 {[%emt 0:00:05]} Ne4 {[%emt 0:00:00]} 10. O-O {[%emt 0:02:26]} Qf6 {[%emt 0:00:00]} 11. Ne2 {[%emt 0:03:00]} Qh6 {[%emt 0:15:44] [#]} 12. Rc2 $146 {[%emt 0:32:24]} ({Predecessor:} 12. Ne5 Ndf6 13. h3 Bd7 14. Nxd7 Nxd7 15. f4 Ndf6 16. Qe1 g5 17. Bxe4 Nxe4 18. fxg5 Qxg5 {0-1 (36) Rathi,D (1548)-Janani,J (1857) Chennai 2016}) 12... Ndf6 {[%emt 0:02:02]} 13. Qc1 $2 {[%emt 0:04:02]} (13. Ne5 $14 {stays ahead.}) 13... Ng5 $1 $19 {[%emt 0:03:28] ( -> ...Nxf3+)} 14. Ng3 {[%emt 0:27:22]} Ng4 {[%emt 0:00:25]} (14... Nxf3+ $19 15. gxf3 f4 16. exf4 Nh5) 15. h4 $17 {[%emt 0:01:09]} Nxf3+ {[%emt 0:14:13]} 16. gxf3 {[%emt 0:00:08]} Bxg3 {[%emt 0:04:03]} 17. fxg4 {[%emt 0:00:36] [#]} Bxh4 {[%emt 0:04:29]} (17... Bh2+ $1 $17 18. Kg2 Qxh4) 18. f4 $11 {[%emt 0:03:16] aiming for g5.} fxg4 {[%emt 0:01:35] Threatens to win with ...g3.} 19. Ba3 {[%emt 0:00:27]} Rf7 {[%emt 0:02:49] ...a5 is the strong threat.} 20. Rh2 {[%emt 0:00:57]} g3 {[%emt 0:07:01]} 21. Rh1 {[%emt 0:00:21]} e5 {[%emt 0:01:45]} (21... dxc4 $11 22. Qxc4 Qf6) 22. dxe5 $14 {[%emt 0:01:18] And now Kg2 would win.} Bf5 {[%emt 0:05:55]} (22... g2 $14 23. Kxg2 dxc4 24. bxc4 (24. Qxc4 Be6 $11) 24... g5) 23. Bxf5 $18 {[%emt 0:02:06]} Rxf5 {[%emt 0:00:05]} 24. Qc2 {[%emt 0:00:07]} Rh5 {[%emt 0:06:51] [#]} 25. Kg2 $1 {[%emt 0:00:10]} Qg6 {[%emt 0:06:48] [#]} (25... Re8 $16) 26. Qxg6 {[%emt 0:01:28] Chess con chili.} (26. f5 $1 $18 {[%cal Rf5g6] and the rest is easy.} Qf7 27. Qe2 Rxf5 28. Rxh4) 26... hxg6 $16 {[%emt 0:00:04]} 27. cxd5 {[%emt 0:00:05]} cxd5 {[%emt 0:00:03]} 28. Rd1 $36 {[%emt 0:00:16][%mdl 2048] White has strong initiative.} Rc8 {[%emt 0:00:56]} 29. Rc1 {[%emt 0:00:58] Against Rc2+} ({Reject} 29. Rxd5 $6 Rc2+ 30. Kf3 Rxa2 $11) 29... Rc6 {[%emt 0:03:23]} 30. Rxc6 {[%emt 0:00:59]} bxc6 $18 {[%emt 0:00:05][%mdl 4096] Endgame KRB-KRB} 31. Rc1 {[%emt 0:00:13]} g5 {[%emt 0:01:48]} (31... Rf5 $142) 32. Rxc6 {[%emt 0:00:52]} ({White should try} 32. f5 $18) 32... d4 $2 {[%emt 0:00:05][%mdl 8192]} (32... gxf4 $16 {is more resistant.} 33. exf4 Rf5) 33. e6 {[%emt 0:01:02] White wants to mate with e7.} gxf4 {[%emt 0:04:41]} 34. Rc8+ {[%emt 0:01:15]} Kh7 {[%emt 0:00:05]} 35. exf4 {[%emt 0:00:49]} Ra5 {[%emt 0:02:21]} 36. e7 {[%emt 0:01:05]} Bxe7 {[%emt 0:00:07]} 37. Bxe7 {[%emt 0:00:04]} Rxa2+ {[%emt 0:00:04]} 38. Kxg3 {[%emt 0:00:13] KRB-KR} a5 {[%emt 0:00:33]} 39. Rd8 {[%emt 0:01:07]} Rb2 {[%emt 0:00:40]} 40. Rxd4 {[%emt 0:00:22]} Rxb3+ {[%emt 0:00:05]} 41. Kg4 {[%emt 0:15:08] Strongly threatening Rd7.} Rb6 {[%emt 0:16:43]} 42. Ra4 {[%emt 0:00:16]} g6 {[%emt 0:00:19]} (42... Rg6+ $18 43. Kf5 Ra6) 43. Rxa5 {[%emt 0:00:16]} Rc6 {[%emt 0:00:36]} 44. Kg5 {[%emt 0:00:15] White threatens Bf6 and mate.} Rb6 {[%emt 0:00:15]} 45. Bf6 {[%emt 0:00:39] White mates.} Rb7 {[%emt 0:00:13]} 46. Re5 {[%emt 0:00:14]} Rb4 {[%emt 0:00:37]} 47. Re7+ {[%emt 0:00:11]} Kg8 {[%emt 0:00:07]} 48. Kxg6 {[%emt 0:00:21][%cal Re7e8]} Rxf4 {[%emt 0:00:06]} 49. Re8# {Never resign too early!  Weighted Error Value: White=0.20 (precise) /Black=0.74} 1-0

[Event "GER-ch Youth-ODJM 2022 A"]
[Site "Willingen"]
[Date "2022.06.09"]
[Round "7.17"]
[White "Nguyen, Phuc Nhat"]
[Black "Herter, Arne"]
[Result "1/2-1/2"]
[ECO "C50"]
[WhiteElo "1809"]
[BlackElo "1943"]
[Annotator "TA"]
[PlyCount "69"]
[EventDate "2022.06.05"]
[EventType "swiss"]
[EventRounds "9"]
[EventCountry "GER"]
[SourceTitle "playchess.com"]
[Source "ChessBase"]
[SourceQuality "1"]
[TimeControl "40/4500+30:900+30"]

{[%evp 11,69,-8,18,3,2,0,2,-11,24,36,35,30,28,30,40,21,28,-70,-85,-66,-75,-146,-131,-172,-107,-206,-137,-142,-124,-179,-165,-256,-260,-263,-258,-254,-254,-396,-414,-412,-246,-261,-228,-215,-119,-115,-122,-184,-133,-133,-80,-153,0,0,0,0,0,0,0,0]} 1. e4 {[%emt 0:00:00]} e5 {[%emt 0:00:00]} 2. Nf3 {[%emt 0:00:00]} Nc6 {[%emt 0:00:00]} 3. Bc4 {[%emt 0:00:00]} Bc5 {[%emt 0:00:00]} 4. d3 {[%emt 0:00:00]} Nf6 {[%emt 0:00:00]} 5. Nc3 {[%emt 0:00:00]} d6 {[%emt 0:00:00]} 6. h3 {[%emt 0:00:00]} a6 $1 {[%emt 0:00:00][%mdl 4] is more profitable than 6...h6 at the moment.} 7. a3 {[%emt 0:00:00] C50: Hungarian Defence and Giuoco Pianissimo.} Ba7 {[%emt 0:00:00] [#]} 8. Qe2 $146 {[%emt 0:00:00]} ({Predecessor:} 8. O-O h6 9. Be3 g5 10. Nh2 g4 11. hxg4 Rg8 12. Qf3 Qe7 13. Nd5 Nxd5 14. Bxd5 Nd4 {1-0 (26) Firouzja,A (2702)-Sunilduth Lyna,N (2611) chess24.com INT 2020}) 8... O-O {[%emt 0:00:00]} 9. Bg5 {[%emt 0:00:00]} Be6 {[%emt 0:00:00]} (9... h6 $5 {[%cal Rh6g5]} 10. Bxf6 Qxf6 $11) 10. Nd5 {[%emt 0:00:00]} Bxd5 {[%emt 0:00:15]} 11. Bxd5 {[%emt 0:00:00]} h6 {[%emt 0:03:30]} 12. Bh4 {[%emt 0:00:00]} g5 {[%emt 0:05:34]} 13. Bxc6 {[%emt 0:00:00]} bxc6 {[%emt 0:01:31] [#]} 14. Nxg5 {[%emt 0:01:10]} hxg5 $15 {[%emt 0:07:38]} 15. Bxg5 {[%emt 0:00:58] And now Qf3 would win.} Qe7 {[%emt 0:02:49]} 16. Qf3 {[%emt 0:02:22]} (16. Qd2 $142) 16... Kg7 $17 {[%emt 0:02:44]} 17. Qg3 {[%emt 0:02:15] Strongly threatening Bd2+.} Qe6 {[%emt 0:04:46]} (17... Rh8 18. Rf1 Qe6 19. Be3+ Kf8 20. Bxa7 Rxa7 21. f4 $17) ({Black should try} 17... Rg8 $19 18. f4 exf4) 18. f4 {[%emt 0:10:21]} (18. Be3+ $17 {was called for.} Kh8 19. Bxa7 Rxa7 20. O-O (20. Qh4+ Nh7 $17)) 18... exf4 {[%emt 0:14:48]} 19. Bxf4+ {[%emt 0:10:30]} Kh8 {[%emt 0:05:46]} 20. Rf1 {[%emt 0:02:05]} (20. Be3 $17) 20... Nh7 {[%emt 0:07:11]} 21. Qh4 {[%emt 0:06:35]} (21. b3 $142) 21... Bd4 {[%emt 0:07:05]} 22. c3 {[%emt 0:04:43]} Bg7 {[%emt 0:01:56]} 23. Rf2 {[%emt 0:03:33]} f5 {[%emt 0:05:07]} 24. Re2 {[%emt 0:01:23]} (24. Kf1 $142) 24... fxe4 $19 {[%emt 0:04:19]} 25. dxe4 {[%emt 0:15:56][%cal Bd3e4,Be4e5,Be5d6,Bd6d7][%mdl 32]} Qf6 {[%emt 0:03:38]} (25... Rab8 $142 {[%cal Ob8b2] White must now prevent ...Rxb2!} 26. e5 Qf5) 26. Qxf6 {[%emt 0:00:40]} Rxf6 {[%emt 0:00:13]} ({Not} 26... Bxf6 27. O-O-O $17) 27. g3 {[%emt 0:00:56]} Bh6 {[%emt 0:01:38]} ({Black should play} 27... Re6 $19 28. Kd2 Nf8) 28. e5 $17 {[%emt 0:01:30]} Re6 {[%emt 0:02:42]} 29. O-O-O {[%emt 0:01:53]} (29. Bxh6 $17 Rxh6 30. exd6 cxd6 31. h4) 29... Bxf4+ {[%emt 0:02:42]} ({Better is} 29... Bg7 $19 30. Rf1 Rae8) 30. gxf4 {[%emt 0:00:01]} Rae8 {[%emt 0:00:29]} (30... Nf6 $142 31. Rg1 Nd7) 31. Rde1 {[%emt 0:00:59]} (31. Re4 $142) 31... Kg7 $2 {[%emt 0:01:19] [#]} (31... Nf8 $17 {...Kg7 is the strong threat.} 32. h4 Nd7) 32. exd6 $1 $11 {[%emt 0:01:02] The position is equal.} Rxe2 {[%emt 0:02:34]} 33. Rxe2 {[%emt 0:00:01]} Rxe2 {[%emt 0:00:56]} 34. d7 {[%emt 0:00:48]} Re1+ {[%emt 0:00:06]} 35. Kc2 $1 {[%emt 0:00:30] Weighted Error Value: White=0.32/Black=0.33} ({But not} 35. Kd2 Re6 36. d8=Q Rd6+ 37. Qxd6 cxd6 $17) 1/2-1/2

[Event "GER-ch Youth-ODJM 2022 A"]
[Site "Willingen"]
[Date "2022.06.09"]
[Round "7.18"]
[White "Frohnhäuser, Simon"]
[Black "Sabirov, Rafael"]
[Result "1-0"]
[ECO "B43"]
[WhiteElo "1944"]
[BlackElo "1704"]
[Annotator "TA"]
[PlyCount "85"]
[EventDate "2022.06.05"]
[EventType "swiss"]
[EventRounds "9"]
[EventCountry "GER"]
[SourceTitle "playchess.com"]
[Source "ChessBase"]
[SourceQuality "1"]
[TimeControl "40/4500+30:900+30"]

{[%evp 14,85,34,27,30,32,65,43,65,-36,73,72,78,73,70,68,76,2,77,-43,-28,-107,-91,-169,-64,-109,-106,-101,-25,-60,-44,-60,-65,-66,-71,-118,-53,-185,-191,-250,-93,-93,-91,-199,-213,-202,-70,-72,0,16,576,569,565,536,560,388,381,376,454,443,472,477,472,456,648,641,623,626,909,856,754,716,29987,29988]} 1. e4 {[%emt 0:00:00]} c5 {[%emt 0:00:00]} 2. Nf3 {[%emt 0:00:00]} e6 {[%emt 0:00:00]} 3. d4 {[%emt 0:00:00]} cxd4 {[%emt 0:00:00]} 4. Nxd4 {[%emt 0:00:00]} a6 {[%emt 0:00:00]} 5. Nc3 {[%emt 0:00:00]} Qc7 {[%emt 0:00:00]} 6. Bd3 {[%emt 0:00:00]} Nf6 {[%emt 0:00:00]} 7. Qe2 {[%emt 0:00:00]} d6 {[%emt 0:00:00]} 8. f4 {[%emt 0:00:00]} Nbd7 {[%emt 0:00:00] B82: Sicilian Scheveningen: 6 f4.} 9. g4 {[%emt 0:00:00][%cal Bg2g4,Bg4g5][%mdl 32]} g6 {[%emt 0:12:20]} 10. g5 {[%emt 0:00:00]} Nh5 {[%emt 0:06:13] White is slightly better.} 11. Bd2 {[%emt 0:00:00] [#] White is more active.} (11. Be3 $14) 11... Be7 $146 {[%emt 0:07:23]} (11... Bg7 $15 {keeps the upper hand.} 12. Qf2 Qb6) ({Predecessor:} 11... Nb6 12. O-O-O Bd7 13. e5 O-O-O 14. Ne4 dxe5 15. fxe5 Qxe5 16. Nf3 Qc7 17. Ba5 Nf4 {1-0 (51) Gonzalez de la Torre,S (2450)-Cacho Reigadas,S (2511) Linares 2014}) 12. O-O-O $16 {[%emt 0:00:00]} Nc5 {[%emt 0:04:06]} 13. Kb1 {[%emt 0:00:00]} O-O {[%emt 0:09:06]} 14. f5 {[%emt 0:00:07]} b5 {[%emt 0:02:09]} 15. Qf2 {[%emt 0:16:06]} (15. a3 $1 $16) 15... Bb7 {[%emt 0:09:50]} (15... b4 $11 {keeps the balance.} 16. Nce2 e5) 16. fxe6 {[%emt 0:12:28]} ({White should play} 16. f6 $16 Bd8 17. a3) 16... fxe6 $15 {[%emt 0:00:42]} 17. Qh4 {[%emt 0:00:09]} (17. Qe2 $11) 17... Ng7 $17 {[%emt 0:06:54] Strongly threatening ...b4.} 18. Qg4 {[%emt 0:08:18]} (18. b4 $17 {keeps fighting.}) 18... e5 {[%emt 0:04:47]} (18... b4 $19 19. Nce2 e5) 19. Nb3 {[%emt 0:00:17]} Nxd3 {[%emt 0:02:09]} 20. cxd3 {[%emt 0:00:08] [#]} Bc8 {[%emt 0:03:32]} (20... b4 $1 $17 {[%cal Rb4c3]} 21. Nd5 Bxd5 22. exd5 a5) 21. Qg3 {[%emt 0:00:22]} Be6 {[%emt 0:00:43] Hoping for ...b4.} 22. Rc1 {[%emt 0:03:13] And now Nd5 would win.} Qb7 {[%emt 0:00:51] Against Nd5} 23. Na5 {[%emt 0:06:00]} Qd7 $36 {[%emt 0:03:31][%mdl 2048] Black is really pushing.} 24. Ne2 {[%emt 0:01:17]} (24. Nd5 $142 Bd8 25. Nc6) 24... Bd8 {[%emt 0:02:22]} (24... Nh5 $17 25. Qe3 Bg4) 25. Rhf1 {[%emt 0:00:33]} (25. Nc6 $15) 25... Bb6 {[%emt 0:00:56]} 26. Bb4 {[%emt 0:04:07]} (26. Rxf8+ {is a better defense.} Rxf8 27. Qe1) 26... Bh3 $2 {[%emt 0:02:16]} (26... Rxf1 $19 {and Black stays clearly on top.} 27. Rxf1 Nh5) 27. Rxf8+ {[%emt 0:04:40]} Rxf8 {[%emt 0:00:01]} 28. Ng1 {[%emt 0:00:08]} (28. d4 $17 {is the only way for White.}) 28... Be6 $19 {[%emt 0:01:45] Threatens to win with ...Rf2. A strong pair of Bishops.} 29. Qe1 {[%emt 0:05:42]} Qf7 {[%emt 0:03:01]} (29... Nh5 $19 {...Nf4 is the strong threat.} 30. Ne2 Rf3) 30. Bxd6 $15 {[%emt 0:07:58] [#]} Bxa2+ {[%emt 0:03:03]} ({Black should try} 30... Rd8 $1 $17 31. Bxe5 Bxa2+ 32. Ka1 Rxd3) 31. Ka1 $11 {[%emt 0:00:05]} Bd4 $2 {[%emt 0:00:17][%mdl 8192]} 32. Bxf8 $18 {[%emt 0:04:08]} Kxf8 {[%emt 0:00:23]} 33. Nc6 {[%emt 0:04:59]} Qb3 {[%emt 0:01:52][%csl Gd4][%cal Rb3b2]} 34. Qb4+ {[%emt 0:00:18]} Qxb4 {[%emt 0:00:28]} 35. Nxb4 {[%emt 0:00:05] Dancing on a razor blade.} Be6 {[%emt 0:00:46]} 36. Nf3 {[%emt 0:00:41]} Be3 {[%emt 0:00:27]} 37. Rc6 {[%emt 0:01:21]} Bf4 {[%emt 0:01:18]} 38. Nd5 {[%emt 0:01:26]} a5 {[%emt 0:00:44]} (38... Bxd5 $142 39. exd5 Nf5 40. Rxa6 Ke8) 39. Nxf4 {[%emt 0:02:39]} exf4 {[%emt 0:00:01]} 40. d4 {[%emt 0:00:09][%cal Bd3d4,Bd4d5,Bd5d6][%mdl 32]} Ke7 {[%emt 0:00:53]} 41. d5 {[%emt 0:15:25]} Bg4 {[%emt 0:15:15]} 42. Ne5 {[%emt 0:00:29]} Be2 {[%emt 0:00:28]} 43. d6+ {[%emt 0:01:26] Weighted Error Value: White=0.38/Black=0.85} 1-0

[Event "GER-ch Youth-ODJM 2022 A"]
[Site "Willingen"]
[Date "2022.06.09"]
[Round "7.19"]
[White "Gallasch, Robin"]
[Black "Zha, Kevin"]
[Result "1/2-1/2"]
[ECO "A04"]
[WhiteElo "2063"]
[BlackElo "1835"]
[Annotator "TA"]
[PlyCount "72"]
[EventDate "2022.06.05"]
[EventType "swiss"]
[EventRounds "9"]
[EventCountry "GER"]
[SourceTitle "playchess.com"]
[Source "ChessBase"]
[SourceQuality "1"]
[TimeControl "40/4500+30:900+30"]

{[%evp 14,72,37,35,69,66,73,-6,69,27,67,70,94,52,98,89,74,0,73,74,70,71,75,68,102,97,83,44,31,19,49,33,33,23,86,93,97,86,135,127,127,124,213,65,57,61,74,73,61,71,70,-224,0,0,0,0,0,0,0,0,0]} 1. Nf3 {[%emt 0:00:00]} g6 {[%emt 0:00:00]} 2. d4 {[%emt 0:00:00]} Bg7 {[%emt 0:00:00]} 3. g3 {[%emt 0:00:00]} f5 {[%emt 0:00:00]} 4. Bg2 {[%emt 0:00:00]} Nf6 {[%emt 0:00:00]} 5. O-O {[%emt 0:00:00]} d6 {[%emt 0:00:00]} 6. c4 {[%emt 0:00:00]} O-O {[%emt 0:00:00]} 7. b3 {[%emt 0:00:00]} Qe8 {[%emt 0:00:00]} 8. Bb2 {[%emt 0:00:00]} Nbd7 {[%emt 0:00:00] A87: Dutch Defence: Leningrad System: 5 Nf3.} 9. Nc3 {[%emt 0:05:09]} c6 {[%emt 0:03:58] [#]} 10. a4 $146 {[%emt 0:19:31]} (10. Re1 $16) ({Predecessor:} 10. d5 Nc5 11. Nd4 Bd7 12. Qc2 a5 13. Rad1 Rc8 14. Qb1 Qf7 15. Ba3 h5 16. dxc6 bxc6 17. Bxc5 dxc5 {1-0 (39) Vertetics,A (2464)-Gazik,I (2322) Velky Cetin 2018}) 10... h6 {[%emt 0:24:08]} (10... e5 $11) 11. a5 {[%emt 0:06:59]} Rb8 {[%emt 0:06:01]} 12. Qc2 {[%emt 0:15:00]} Rf7 {[%emt 0:11:38]} 13. d5 {[%emt 0:03:37]} cxd5 {[%emt 0:09:19]} (13... Nc5 $14) 14. cxd5 {[%emt 0:00:12]} Nc5 {[%emt 0:00:57][%cal Bd7c5,Bc5a6,Ba6c7][%mdl 32]} 15. Nd2 {[%emt 0:09:55]} (15. Nd4 $16) 15... b5 {[%emt 0:04:23]} (15... Bd7 $11 {remains equal.}) 16. axb6 $1 $16 {[%emt 0:02:55]} axb6 {[%emt 0:00:16]} 17. b4 {[%emt 0:00:14]} Na6 {[%emt 0:01:22]} 18. Qb3 {[%emt 0:00:05]} b5 {[%emt 0:06:54]} 19. Ra5 {[%emt 0:00:34]} e5 {[%emt 0:06:03]} 20. Rfa1 {[%emt 0:00:09]} Nc7 {[%emt 0:00:50]} 21. e4 {[%emt 0:10:06]} Bf8 {[%emt 0:02:09]} 22. Qd1 {[%emt 0:01:38]} Bd7 {[%emt 0:04:15]} 23. Qe2 {[%emt 0:03:34]} h5 {[%emt 0:01:33]} (23... Ra8 $11 {keeps the balance.}) 24. Nf3 {[%emt 0:01:32]} Bh6 {[%emt 0:00:26]} 25. Nh4 {[%emt 0:00:20]} Kh7 {[%emt 0:00:16]} (25... Rg7 $142) 26. exf5 {[%emt 0:02:47]} gxf5 {[%emt 0:00:12]} 27. Qc2 {[%emt 0:00:37] White is more active.} e4 {[%emt 0:01:28]} (27... Qg8 $16 28. Ra7 (28. Nxf5 Qg6 $16) 28... Rc8) 28. Nxe4 {[%emt 0:00:36]} Nxe4 $14 {[%emt 0:01:49]} 29. Qxc7 {[%emt 0:00:07]} Rc8 $1 {[%emt 0:00:14] [#]} 30. Qb6 {[%emt 0:03:05] Black must now prevent Bxe4.} Nxf2 {[%emt 0:00:28]} 31. Qxd6 {[%emt 0:00:36][%csl Gh4][%cal Rd6g6]} ({But not} 31. Kxf2 $2 Rc2+ 32. Kf1 Qe2+ 33. Kg1 Be3+ 34. Qxe3 Qxe3+ $19) (31. Qxf2 $2 Be3 32. Bd4 Bxf2+ $19) 31... Re7 {[%emt 0:01:18]} 32. Ra6 $4 {[%emt 0:01:01][%mdl 8192] [#]} (32. h3 $1 $14 Ne4 33. Bxe4 Rxe4 34. Nf3 (34. Ra6 Re1+ 35. Rxe1 Qxe1+ 36. Kh2 Rc2+ 37. Ng2 Rxg2+ 38. Kxg2 Qe2+ 39. Kh1 Qe4+ 40. Kh2 Qe2+ 41. Kh1 Qe4+ 42. Kh2 Qe2+ 43. Kh1 $11)) 32... Re1+ $2 {[%emt 0:00:35]} ({Black should play} 32... Be3 $1 $19 33. Qg6+ Qxg6 34. Nxg6 Ree8) 33. Bf1 $11 {[%emt 0:01:07] The position is equal.} (33. Rxe1 Qxe1+ 34. Bf1 Nh3+ 35. Kg2 Rc2+ 36. Kxh3 Qxf1+) 33... Nh3+ {[%emt 0:00:41]} 34. Kh1 $1 {[%emt 0:00:19]} (34. Kg2 {gets mated.} Qe4+ 35. Kxh3 Qg4+ 36. Kg2 Rc2+ 37. Kh1 Qe4+) 34... Qe4+ {[%emt 0:00:36]} 35. Ng2 {[%emt 0:00:04][%csl Ga6][%cal Rd6g6]} Nf2+ {[%emt 0:00:14]} 36. Kg1 {[%emt 0:00:03][%csl Ga6][%cal Rd6g6] Really sharp!} Nh3+ {[%emt 0:00:10] Weighted Error Value: White=0.27 (precise) /Black=0.34} 1/2-1/2

[Event "GER-ch Youth-ODJM 2022 A"]
[Site "Willingen"]
[Date "2022.06.09"]
[Round "7.20"]
[White "Scherer, Josua"]
[Black "Brockmeyer, Tobias"]
[Result "0-1"]
[ECO "C07"]
[WhiteElo "1856"]
[BlackElo "1936"]
[Annotator "TA"]
[PlyCount "76"]
[EventDate "2022.06.05"]
[EventType "swiss"]
[EventRounds "9"]
[EventCountry "GER"]
[SourceTitle "playchess.com"]
[Source "ChessBase"]
[SourceQuality "1"]
[TimeControl "40/4500+30:900+30"]

{[%evp 10,76,23,22,14,18,16,18,25,7,17,15,19,10,12,14,15,10,0,7,14,0,0,0,11,13,4,14,29,17,26,0,2,-1,0,0,0,-11,-5,-17,0,0,114,-202,-185,-201,-197,-189,-196,-233,-177,-183,-129,-197,-177,-182,-183,-283,-304,-300,-306,-299,-297,-282,-287,-446,-450,-424,-394]} 1. e4 {[%emt 0:00:00]} e6 {[%emt 0:00:00]} 2. d4 {[%emt 0:00:00]} d5 {[%emt 0:00:00]} 3. Nd2 {[%emt 0:00:00]} c5 {[%emt 0:00:00]} 4. exd5 {[%emt 0:00:00]} Qxd5 {[%emt 0:00:00]} 5. Ngf3 {[%emt 0:00:00]} cxd4 {[%emt 0:00:00]} 6. Bc4 {[%emt 0:00:00]} Qd7 {[%emt 0:00:00] C07: French Tarrasch: 3...c5, 4 Ngf3 and 4 exd5 Qxd5.} 7. O-O {[%emt 0:00:00][%mdl 1024] White has compensation.} Nf6 {[%emt 0:00:00]} 8. Nb3 {[%emt 0:00:00]} (8. Ne5 {looks sharper.} Qc7 9. Ndf3 Bd7 10. Qxd4 Nc6 11. Nxc6 Bxc6 12. Bf4) 8... Nc6 {[%emt 0:00:00] The position is equal.} 9. Re1 {[%emt 0:00:00][%cal Rb3d4]} Bb4 {[%emt 0:00:00]} 10. Bd2 {[%emt 0:00:00]} Bxd2 {[%emt 0:00:00]} 11. Qxd2 {[%emt 0:00:00]} O-O {[%emt 0:00:00]} 12. Rad1 {[%emt 0:09:24]} Qc7 {[%emt 0:00:55]} 13. Nbxd4 {[%emt 0:03:46]} Nxd4 {[%emt 0:00:03]} 14. Qxd4 {[%emt 0:00:18]} Bd7 {[%emt 0:02:12] [#]} 15. Bb3 $146 {[%emt 0:11:19]} ({Predecessor:} 15. Ne5 Rfd8 16. Qe3 b6 17. Rd4 Be8 18. Red1 Rac8 19. Bb3 Rxd4 20. Qxd4 Qc5 21. Qxc5 Rxc5 {1-0 (69) Ivkov,B (2411)-Mednikova,S (2165) Davos 2008}) 15... Bc6 {[%emt 0:06:01]} 16. Qe5 {[%emt 0:08:00]} Rac8 {[%emt 0:06:36]} 17. Qxc7 {[%emt 0:05:34]} Rxc7 {[%emt 0:02:33]} 18. Ne5 {[%emt 0:00:43]} Bd5 {[%emt 0:03:03]} 19. c4 {[%emt 0:05:21]} Bc6 {[%emt 0:00:40]} 20. Rd6 {[%emt 0:00:13]} Rfc8 {[%emt 0:02:33]} 21. Red1 {[%emt 0:01:41]} Kf8 {[%emt 0:04:25][%cal Bg8f8,Bf8e7,Be7d6][%mdl 32]} 22. f3 {[%emt 0:01:18]} Ke7 {[%emt 0:05:14]} 23. Kf2 {[%emt 0:01:07]} a5 {[%emt 0:18:05][%cal Ba7a5,Ba5a4][%mdl 32]} 24. R1d2 {[%emt 0:03:49]} a4 {[%emt 0:19:20]} 25. Bd1 {[%emt 0:02:09]} Bd5 {[%emt 0:03:08]} 26. R6xd5 $4 {[%emt 0:03:28][%mdl 8192] Now White is beyond hope.} (26. Rb6 $16 {is necessary to keep the advantage.}) 26... exd5 $19 {[%emt 0:00:43]} 27. cxd5 {[%emt 0:03:32]} Kd6 {[%emt 0:02:36][%csl LRd5,LRe5]} 28. Nd3 {[%emt 0:01:41]} Rc4 {[%emt 0:02:10]} ({Stronger than} 28... Kxd5 29. Bxa4 Kd6 30. g4 $15) ({Much less strong is} 28... Nxd5 29. Nf4 Rc5 30. b4 $16) 29. b3 {[%emt 0:01:11]} axb3 {[%emt 0:00:31]} 30. Bxb3 {[%emt 0:00:02]} R4c7 {[%emt 0:02:13]} ({Not} 30... Nxd5 31. Bxc4 Rxc4 32. Nb2 $11) (30... Rd4 $19 {And now ...Re8 would win.} 31. Ke3 Rh4) 31. Nb4 {[%emt 0:00:54]} (31. Nf4 $17) 31... Nd7 {[%emt 0:00:43]} 32. Nc2 {[%emt 0:02:18] [#]} Nc5 $1 {[%emt 0:02:29]} 33. Bc4 {[%emt 0:00:01] [#]} (33. Na3 $142 Nxb3 34. axb3) 33... Ne4+ $1 {[%emt 0:02:40][%mdl 512]} 34. fxe4 {[%emt 0:00:02] Threatens to win with Bd3.} Rxc4 {[%emt 0:00:00]} 35. Nd4 {[%emt 0:00:01]} Ke5 {[%emt 0:01:04][%csl LRd4,LRe4]} 36. Ke3 {[%emt 0:00:19]} Rc3+ {[%emt 0:00:35]} 37. Rd3 {[%emt 0:00:02]} (37. Ke2 $142) 37... Rxd3+ {[%emt 0:00:32]} 38. Kxd3 {[%emt 0:00:02]} Ra8 {[%emt 0:00:02] Weighted Error Value: White=0.32/Black=0.12 (very precise)} 0-1